bitfinex/quotes_SOLUSD_20250919
["timestamp","ask_amount","ask_price","bid_price","bid_amount"]
[1758287056244,0.71,241.14,241.11,0.67]
[1758287057167,6.39530491,241.15,241.11,0.67]
[1758287057349,0.1,241.16,241.11,0.67]
[1758287057549,2.95850377,241.15,241.11,0.67]
[1758287058674,6.39531705,241.15,241.11,0.67]
[1758287058870,7.10531705,241.15,241.11,0.67]
[1758287059550,2.95850377,241.15,241.11,0.67]
[1758287061369,2.95850377,241.15,241.1,4.14764541]
[1758287061546,0.71,241.14,241.11,31.7]
[1758287061746,0.71,241.14,241.11,32.37]
[1758287061945,2.24850377,241.15,241.11,32.37]
[1758287062157,0.71,241.15,241.11,31.7]
[1758287062361,0.1,241.16,241.12,0.67]
[1758287062647,0.1,241.16,241.13,0.67]
[1758287062846,0.1,241.16,241.14,2.91850377]
[1758287063076,0.1,241.16,241.15,2.91850377]
[1758287063371,0.1,241.16,241.15,34.63850377]
[1758287063544,0.1,241.16,241.15,34.92282691]
[1758287064476,0.1,241.16,241.15,32.67432314]
[1758287064666,0.1,241.16,241.15,34.92282691]
[1758287064972,0.1,241.16,241.15,39.0696235]
[1758287066677,0.1,241.16,241.15,40.72947784]
[1758287067043,0.1,241.16,241.15,54.32507185]
[1758287067461,0.1,241.16,241.15,52.07656808]
[1758287067652,0.1,241.16,241.15,54.32507185]
[1758287068651,0.1,241.16,241.15,6.76097407]
[1758287068973,0.1,241.16,241.15,4.14679659]
[1758287069281,0.1,241.16,241.15,38.17530036]
[1758287070874,0.1,241.16,241.15,6.39530036]
[1758287071177,0.1,241.16,241.15,38.17530036]
[1758287072957,0.1,241.16,241.15,38.84530036]
[1758287073877,0.1,241.16,241.15,7.06530036]
[1758287074072,0.1,241.16,241.15,38.84530036]
[1758287075085,0.1,241.16,241.15,4.14679659]
[1758287075255,0.1,241.16,241.15,61.90679659]
[1758287075961,0.1,241.16,241.15,57.76]
[1758287076168,0.1,241.16,241.15,61.90679659]
[1758287078562,0.1,241.16,241.15,64.15530036]
[1758287078792,0.1,241.16,241.15,32.39530036]
[1758287078983,0.1,241.16,241.15,64.15530036]
[1758287079997,0.1,241.16,241.15,65.1096235]
[1758287080307,0.1,241.16,241.15,65.0896235]
[1758287080472,0.1,241.16,241.15,66.74947785]
[1758287081602,0.1,241.16,241.15,35.00947785]
[1758287081894,0.1,241.16,241.15,80.36507186]
[1758287082190,0.1,241.16,241.15,48.60507186]
[1758287082395,0.1,241.16,241.15,80.36507186]
[1758287084372,0.1,241.16,241.15,48.60507186]
[1758287084689,0.1,241.16,241.15,80.34507186]
[1758287084901,0.1,241.16,241.15,78.09656809]
[1758287085200,0.1,241.16,241.15,80.34507186]
[1758287087398,0.1,241.16,241.15,78.09656809]
[1758287095325,0.1,241.16,241.15,46.35656809]
[1758287095484,0.1,241.16,241.15,45.68656809]
[1758287095682,0.1,241.16,241.15,78.12656809]
[1758287096702,0.1,241.16,241.15,46.38656809]
[1758287097208,0.1,241.16,241.15,78.12656809]
[1758287097610,0.1,241.16,241.15,46.38656809]
[1758287097910,0.1,241.16,241.15,78.12656809]
[1758287098210,0.1,241.16,241.15,46.38656809]
[1758287098410,0.1,241.16,241.15,78.12656809]
[1758287098606,0.1,241.16,241.15,46.38656809]
[1758287098814,0.1,241.16,241.15,78.12656809]
[1758287101893,0.1,241.16,241.15,78.10656809]
[1758287102514,0.1,241.16,241.15,46.38656809]
[1758287102695,0.1,241.16,241.15,78.10656809]
[1758287104102,0.1,241.16,241.15,77.40656809]
[1758287104396,0.1,241.16,241.15,78.09656809]
[1758287104922,0.1,241.16,241.15,77.40656809]
[1758287105814,0.1,241.16,241.15,78.09656809]
[1758287109918,0.1,241.16,241.15,77.40656809]
[1758287110091,0.1,241.16,241.15,78.09656809]
[1758287111024,0.1,241.16,241.15,77.40656809]
[1758287111195,0.81,241.16,241.15,77.38656809]
[1758287111815,0.1,241.16,241.15,77.38656809]
[1758287113319,0.1,241.16,241.15,78.07656809]
[1758287113820,0.1,241.16,241.15,77.38656809]
[1758287114510,0.1,241.16,241.15,78.07656809]
[1758287117023,0.1,241.16,241.15,78.07656809]
[1758287121811,0.1,241.16,241.15,77.38656809]
[1758287122010,0.1,241.16,241.15,78.07656809]
[1758287124520,0.81,241.16,241.15,77.38656809]
[1758287124813,0.1,241.16,241.15,77.38656809]
[1758287125430,0.1,241.16,241.15,78.10656809]
[1758287126129,0.1,241.16,241.15,45.68656809]
[1758287126318,0.77,241.16,241.15,77.36656809]
[1758287126917,0.1,241.16,241.15,77.36656809]
[1758287128035,0.1,241.16,241.15,78.08656809]
[1758287128329,0.1,241.16,241.15,45.68656809]
[1758287128536,0.1,241.16,241.15,77.42656809]
[1758287130643,0.09193837,241.25,241.15,87.77355958]
[1758287131736,0.09193837,241.25,241.15,86.11370523]
[1758287131916,0.09193837,241.25,241.2,26.0]
[1758287132411,0.09193837,241.25,241.21,31.72]
[1758287132611,0.67,241.24,241.21,31.72]
[1758287133122,0.67,241.24,241.21,40.11064444]
[1758287133327,0.09193837,241.25,241.21,40.11064444]
[1758287134512,0.09193837,241.25,241.21,35.96492903]
[1758287134716,0.67,241.24,241.21,35.96492903]
[1758287135840,0.67,241.24,241.21,4.24492903]
[1758287136035,2.10723985,241.23,241.21,4.24492903]
[1758287136240,4.23703219,241.25,241.21,4.24492903]
[1758287136241,2.10723985,241.22,241.21,4.24492903]
[1758287136417,6.25283308,241.22,241.21,4.24492903]
[1758287136752,16.61681616,241.22,241.18,31.76]
[1758287136918,1.43723985,241.2,241.18,31.76]
[1758287137117,2.10723985,241.2,241.18,31.76]
[1758287137730,2.10723985,241.2,241.19,31.78]
[1758287137926,6.25317683,241.2,241.19,31.78]
[1758287139339,6.25317683,241.2,241.18,31.78]
[1758287139841,0.67,241.19,241.14,2.16384002]
[1758287140036,1.43723985,241.17,241.15,31.78]
[1758287140223,2.10723985,241.17,241.14,2.16384002]
[1758287140428,1.43723985,241.17,241.15,31.76]
[1758287141440,1.43723985,241.18,241.15,31.76]
[1758287142245,4.14593698,241.2,241.15,31.76]
[1758287142570,10.36381544,241.23,241.15,31.76]
[1758287142571,5.58283308,241.22,241.15,31.76]
[1758287143235,5.58283308,241.22,241.15,35.90679321]
[1758287143545,4.14559323,241.22,241.15,35.90679321]
[1758287144625,4.14542138,241.23,241.15,35.90679321]
[1758287147249,5.58266123,241.23,241.15,35.90679321]
[1758287147625,1.43723985,241.21,241.15,31.76]
[1758287148722,4.14593698,241.2,241.15,31.76]
[1758287149643,4.14593698,241.2,241.14,2.16384002]
[1758287149851,4.14593698,241.2,241.16,31.74]
[1758287151420,4.14593698,241.2,241.17,31.74]
[1758287152154,2.10723985,241.19,241.14,2.16384002]
[1758287152458,14.51017785,241.21,241.15,32.48]
[1758287152459,4.1457651,241.21,241.15,32.48]
[1758287152744,4.14557579,241.23,241.15,31.76]
[1758287153045,4.14557579,241.23,241.16,0.72]
[1758287153253,132.0,241.24,241.16,0.72]
[1758287153947,0.09193837,241.25,241.18,26.0]
[1758287154160,0.09193837,241.25,241.2,4.14593698]
[1758287154536,0.09193837,241.25,241.21,0.72]
[1758287154738,0.09193837,241.25,241.2,4.14593698]
[1758287154938,0.09193837,241.25,241.22,0.72]
[1758287155263,0.09193837,241.25,241.23,31.82]
[1758287155441,0.09193837,241.25,241.24,0.71]
[1758287155944,0.09193837,241.25,241.23,31.82]
[1758287156262,0.09193837,241.25,241.23,32.53]
[1758287156443,0.09193837,241.25,241.24,0.71]
[1758287157332,0.09193837,241.25,241.23,31.82]
[1758287160456,0.09193837,241.25,241.23,32.51]
[1758287165072,0.09193837,241.25,241.24,31.82]
[1758287165850,4.23701724,241.25,241.24,31.8]
[1758287166051,4.92701724,241.25,241.24,31.8]
[1758287166544,0.09193837,241.25,241.24,31.8]
[1758287171669,4.23701609,241.25,241.24,31.8]
[1758287173472,4.23701609,241.25,241.19,4.24491015]
[1758287173681,4.92701609,241.25,241.2,31.78]
[1758287173857,4.92701609,241.25,241.2,32.47]
[1758287174057,4.92701609,241.25,241.2,31.78]
[1758287174265,4.23701609,241.25,241.21,0.69]
[1758287174846,0.09193837,241.25,241.22,0.69]
[1758287175048,4.23704586,241.25,241.23,31.78]
[1758287176075,4.23704586,241.25,241.2,0.69]
[1758287176256,2.2458175,241.22,241.19,4.24491015]
[1758287176571,2.2458175,241.2,241.19,4.24491015]
[1758287176747,28.79637344,241.2,241.12,23.52]
[1758287176948,2.2458175,241.18,241.13,0.69]
[1758287177670,6.39159833,241.21,241.13,0.69]
[1758287177872,4.14578083,241.21,241.13,0.69]
[1758287178679,4.14559323,241.22,241.14,4.14696856]
[1758287178863,4.14559323,241.22,241.15,0.69]
[1758287179062,4.14559323,241.22,241.16,31.82]
[1758287179256,2.2458175,241.21,241.16,32.51]
[1758287179455,2.2458175,241.21,241.17,0.69]
[1758287179843,4.14593698,241.2,241.17,0.69]
[1758287180166,6.39175448,241.2,241.15,0.69]
[1758287180382,6.39175448,241.2,241.16,0.69]
[1758287180560,2.2458175,241.19,241.16,32.51]
[1758287181076,2.2458175,241.19,241.16,31.82]
[1758287181374,6.3920792,241.19,241.16,32.51]
[1758287181559,2.2458175,241.18,241.16,31.82]
[1758287181871,2.2458175,241.18,241.12,6.31188043]
[1758287181872,2.9358175,241.17,241.13,31.82]
[1758287182062,2.2458175,241.16,241.13,32.51]
[1758287182582,2.2458175,241.16,241.14,0.69]
[1758287182762,2.2458175,241.16,241.13,31.82]
[1758287182962,2.2458175,241.16,241.13,32.51]
[1758287183845,4.14679659,241.15,241.13,32.51]
[1758287184366,6.39245137,241.16,241.14,0.69]
[1758287184872,6.39245137,241.16,241.13,31.82]
[1758287185173,6.39245137,241.16,241.13,32.51]
[1758287185673,2.2458175,241.17,241.13,32.51]
[1758287186067,2.2458175,241.15,241.12,2.16472054]
[1758287186274,2.2458175,241.15,241.13,31.8]
[1758287186461,2.2458175,241.15,241.12,2.16472054]
[1758287186668,2.2458175,241.13,241.12,2.16472054]
[1758287186865,2.2458175,241.13,241.12,2.82472054]
[1758287187070,2.2458175,241.14,241.12,2.82472054]
[1758287187592,4.14696856,241.14,241.12,2.82472054]
[1758287188965,2.9558175,241.13,241.12,2.16472054]
[1758287189364,2.2458175,241.13,241.12,2.16472054]
[1758287189784,6.39295804,241.13,241.12,2.16472054]
[1758287191481,4.14696856,241.14,241.12,2.16472054]
[1758287191681,2.2458175,241.13,241.12,2.16472054]
[1758287192767,2.9558175,241.13,241.12,2.16472054]
[1758287192971,2.9558175,241.13,241.05,32.46]
[1758287193165,2.2458175,241.1,241.07,2.1652982]
[1758287193364,2.2458175,241.1,241.07,2.8252982]
[1758287193565,4.14782861,241.09,241.07,2.8252982]
[1758287193759,6.39348919,241.1,241.07,2.8252982]
[1758287194269,2.2458175,241.09,241.08,0.66]
[1758287194785,2.2458175,241.12,241.08,0.66]
[1758287195563,4.14748834,241.11,241.09,0.66]
[1758287196483,4.14679659,241.15,241.09,0.66]
[1758287196687,4.14679659,241.15,241.1,31.82]
[1758287196863,4.14679659,241.15,241.11,0.66]
[1758287197790,4.14664205,241.16,241.11,0.66]
[1758287198503,12.45459263,241.21,241.11,0.66]
[1758287198803,2.2458175,241.2,241.12,4.14731254]
[1758287199016,12.45459263,241.21,241.13,26.66]
[1758287199204,6.39130324,241.23,241.14,0.66]
[1758287199498,132.0,241.24,241.15,57.86]
[1758287199688,13.46403812,241.25,241.16,0.66]
[1758287200087,13.46403812,241.25,241.16,0.94432314]
[1758287200394,13.46403812,241.25,241.17,12.44942421]
[1758287200600,13.46403812,241.25,241.19,4.14610887]
[1758287200771,13.46403812,241.25,241.2,32.54]
[1758287200976,13.46403812,241.25,241.21,0.66]
[1758287201579,0.1,241.29,241.23,26.0]
[1758287201782,0.1,241.29,241.27,26.0]
[1758287202092,0.1,241.29,241.28,0.28432314]
[1758287202297,0.1,241.31,241.28,26.94432314]
[1758287202502,0.1,241.31,241.3,0.28432314]
[1758287202675,0.1,241.31,241.3,62.38854195]
[1758287203000,0.1,241.31,241.3,63.04854195]
[1758287204406,0.1,241.31,241.3,63.02854195]
[1758287204704,0.1,241.31,241.3,26.0]
[1758287204875,0.81,241.31,241.28,1.65889062]
[1758287205075,0.71,241.3,241.29,31.96]
[1758287205276,0.71,241.3,241.27,26.0]
[1758287205476,0.71,241.3,241.28,31.96]
[1758287205672,0.1,241.31,241.28,31.96]
[1758287205884,0.1,241.31,241.28,32.62]
[1758287206310,0.1,241.31,241.29,4.80439056]
[1758287206993,0.81,241.31,241.3,31.98]
[1758287207513,0.1,241.31,241.3,31.98]
[1758287207682,0.1,241.31,241.27,31.8039326]
[1758287207885,0.1,241.31,241.28,31.98]
[1758287208299,0.1,241.31,241.29,4.14439056]
[1758287209204,0.1,241.31,241.3,26.66]
[1758287209789,0.1,241.31,241.3,0.66]
[1758287210089,0.1,241.31,241.3,58.64]
[1758287210612,0.1,241.31,241.3,57.98]
[1758287210797,0.1,241.31,241.3,27.65902822]
[1758287210989,0.1,241.31,241.3,59.63902822]
[1758287212808,0.1,241.31,241.3,33.63902822]
[1758287213014,0.1,241.31,241.3,31.98]
[1758287214008,0.1,241.31,241.3,31.96]
[1758287217682,0.1,241.31,241.3,36.10421881]
[1758287218699,0.1,241.31,241.3,31.96]
[1758287220134,0.1,241.31,241.3,36.10421881]
[1758287220497,0.1,241.31,241.3,31.96]
[1758287220691,0.1,241.31,241.3,31.94]
[1758287220692,0.76,241.31,241.3,31.94]
[1758287221617,0.76,241.31,241.3,31.92]
[1758287222928,0.76,241.31,241.24,26.14216157]
[1758287223098,2.9058175,241.3,241.19,0.66]
[1758287223431,2.2458175,241.28,241.2,31.94]
[1758287223723,0.66,241.27,241.2,57.94]
[1758287224515,0.66,241.27,241.21,31.94]
[1758287224516,2.2458175,241.25,241.21,31.94]
[1758287224699,0.66,241.24,241.21,31.94]
[1758287225100,4.14421881,241.3,241.21,31.94]
[1758287225295,0.66,241.28,241.21,32.6]
[1758287225721,0.1,241.31,241.24,26.0]
[1758287225935,0.1,241.31,241.28,26.0]
[1758287226118,0.1,241.31,241.29,32.62]
[1758287226629,0.1,241.31,241.3,0.66]
[1758287226797,0.1,241.31,241.3,0.94432314]
[1758287228030,0.1,241.31,241.3,5.08854195]
[1758287229141,0.1,241.31,241.3,37.08854195]
[1758287230534,0.1,241.31,241.3,5.08854195]
[1758287230834,0.1,241.31,241.3,37.06854195]
[1758287232829,0.1,241.31,241.3,5.08854195]
[1758287233132,0.1,241.31,241.3,58.26432314]
[1758287233309,0.1,241.31,241.3,58.92432314]
[1758287233711,0.1,241.31,241.3,32.24432314]
[1758287233906,0.1,241.31,241.3,32.26432314]
[1758287234334,0.1,241.31,241.3,32.92432314]
[1758287235614,0.1,241.31,241.3,37.06854195]
[1758287235927,0.1,241.31,241.3,36.44854195]
[1758287236130,0.1,241.31,241.3,63.10854195]
[1758287236334,0.1,241.31,241.3,62.44854195]
[1758287236537,0.1,241.31,241.3,63.10854195]
[1758287237822,0.1,241.31,241.3,62.44854195]
[1758287238919,0.76,241.31,241.3,26.28432314]
[1758287239218,0.76,241.31,241.3,26.0]
[1758287239418,0.76,241.31,241.3,32.02]
[1758287239634,0.1,241.31,241.3,32.02]
[1758287239826,0.1,241.31,241.3,36.16421881]
[1758287242235,0.1,241.31,241.3,37.10854195]
[1758287243240,0.1,241.31,241.3,5.08854195]
[1758287243433,0.1,241.31,241.3,37.08854195]
[1758287243943,0.1,241.31,241.3,37.10854195]
[1758287244145,0.1,241.31,241.3,50.70413596]
[1758287244347,0.05733608,241.31,241.3,44.68413596]
[1758287244535,0.05733608,241.31,241.3,50.70413596]
[1758287245449,0.05733608,241.31,241.3,51.11855784]
[1758287245937,1e-08,241.31,241.3,51.11855784]
[1758287246450,1e-08,241.31,241.3,52.75717331]
[1758287247757,1e-08,241.31,241.3,20.75717331]
[1758287247965,1e-08,241.31,241.3,52.75717331]
[1758287249548,1e-08,241.31,241.3,52.73717331]
[1758287250536,1e-08,241.31,241.3,20.75717331]
[1758287250749,1e-08,241.31,241.3,52.73717331]
[1758287252159,0.1,241.32,241.31,13.87991715]
[1758287252329,0.05754804,241.32,241.31,45.85991715]
[1758287252946,0.05754804,241.32,241.31,47.51846385]
[1758287253341,0.05754804,241.32,241.31,51.66251092]
[1758287253736,0.05754804,241.32,241.31,52.35251092]
[1758287254053,0.1,241.33,241.31,52.35251092]
[1758287254257,0.1,241.33,241.32,14.56991715]
[1758287255152,0.1,241.33,241.32,14.98430468]
[1758287255560,0.1,241.34,241.33,13.87991715]
[1758287255756,0.1,241.35,241.33,46.52991715]
[1758287255938,0.1,241.35,241.34,0.69]
[1758287256132,0.1,241.35,241.34,32.93432314]
[1758287256335,0.1,241.35,241.34,0.28432314]
[1758287256532,0.1,241.35,241.34,33.9025948]
[1758287256949,0.1,241.35,241.34,34.5925948]
[1758287257341,0.1,241.35,241.34,1.9425948]
[1758287257540,0.1,241.35,241.34,38.04612674]
[1758287257745,0.1,241.35,241.34,38.73612674]
[1758287257943,0.78,241.35,241.34,5.8018036]
[1758287258241,0.78,241.35,241.34,36.10353194]
[1758287258441,0.1,241.35,241.34,36.10353194]
[1758287258659,0.1,241.35,241.34,36.38785508]
[1758287258858,0.78,241.35,241.34,36.38785508]
[1758287259835,0.1,241.35,241.34,18.02344909]
[1758287260035,0.1,241.35,241.34,49.98344909]
[1758287260233,0.1,241.35,241.34,50.67344909]
[1758287260838,0.1,241.35,241.34,49.98344909]
[1758287261246,0.1,241.35,241.34,50.67344909]
[1758287261461,0.1,241.37,241.35,0.28432314]
[1758287261758,0.73757076,241.36,241.35,75.98327741]
[1758287261970,0.05757076,241.36,241.35,75.98327741]
[1758287262962,0.05757076,241.36,241.35,44.02327741]
[1758287263257,0.05757076,241.36,241.35,76.02327741]
[1758287263438,0.05757076,241.36,241.35,45.68154908]
[1758287263638,0.05757076,241.36,241.35,77.68154908]
[1758287263838,0.73757076,241.36,241.35,30.14336026]
[1758287264038,0.73757076,241.36,241.35,62.14336026]
[1758287264570,0.73757076,241.36,241.35,62.4276834]
[1758287265150,0.73757076,241.36,241.35,30.28552183]
[1758287265357,0.73757076,241.36,241.35,62.14336026]
[1758287265659,0.73757076,241.36,241.35,30.4276834]
[1758287265959,0.73757076,241.36,241.35,62.4276834]
[1758287271245,0.73757076,241.36,241.35,62.4076834]
[1758287273070,0.05757076,241.36,241.35,62.4076834]
[1758287275568,0.74757076,241.36,241.35,62.4076834]
[1758287276272,0.74757076,241.36,241.35,30.4276834]
[1758287276452,0.74757076,241.36,241.35,62.3676834]
[1758287277954,0.05757076,241.36,241.35,62.3676834]
[1758287279881,0.05757076,241.36,241.35,76.63327741]
[1758287280272,0.1,241.38,241.36,13.87991715]
[1758287280456,0.1,241.4,241.37,45.79991715]
[1758287280777,0.1,241.4,241.39,26.28432314]
[1758287281271,0.1,241.4,241.39,58.26432314]
[1758287281465,0.1,241.4,241.39,58.93432314]
[1758287281775,0.1,241.4,241.39,72.52991715]
[1758287281960,0.1,241.4,241.39,76.67259083]
[1758287282160,0.1,241.4,241.39,44.69259083]
[1758287282467,0.1,241.4,241.39,76.67259083]
[1758287282859,0.1,241.4,241.39,76.65259083]
[1758287283057,0.1,241.4,241.39,44.69259083]
[1758287283357,0.1,241.4,241.39,76.65259083]
[1758287284768,0.1,241.4,241.39,44.69259083]
[1758287285079,0.1,241.4,241.39,76.65259083]
[1758287285252,0.1,241.4,241.39,44.69259083]
[1758287285457,0.1,241.4,241.39,76.65259083]
[1758287286780,0.1,241.4,241.39,88.90164836]
[1758287287278,0.1,241.4,241.39,56.94164836]
[1758287287477,0.1,241.4,241.39,88.88164836]
[1758287289890,0.1,241.4,241.39,88.21164836]
[1758287290284,0.1,241.4,241.39,56.27164836]
[1758287290482,0.1,241.4,241.39,88.19164836]
[1758287290686,0.1,241.4,241.39,88.86164836]
[1758287291362,0.1,241.4,241.39,56.94164836]
[1758287291575,0.1,241.4,241.39,88.19164836]
[1758287292881,0.1,241.4,241.39,56.27164836]
[1758287293193,0.1,241.4,241.39,88.19164836]
[1758287295187,0.1,241.4,241.39,88.17164836]
[1758287296795,0.1,241.4,241.39,88.84164836]
[1758287297178,0.06111413,241.4,241.39,88.84164836]
[1758287297510,0.1,241.41,241.4,13.87991715]
[1758287297673,0.77,241.5,241.47,26.28432314]
[1758287297869,0.67,241.49,241.47,58.18432314]
[1758287298172,0.77,241.48,241.47,58.18432314]
[1758287298779,0.77,241.48,241.47,0.28432314]
[1758287298975,0.77,241.48,241.47,32.18432314]
[1758287299597,0.77,241.48,241.47,36.32562433]
[1758287302602,0.1,241.48,241.47,36.32562433]
[1758287302898,0.77,241.48,241.47,36.32562433]
[1758287306507,0.77,241.48,241.47,4.42562433]
[1758287306799,0.77,241.48,241.47,36.28562433]
[1758287307210,0.77,241.48,241.45,30.1415295]
[1758287307411,0.1,241.48,241.45,30.1415295]
[1758287307586,0.66,241.47,241.46,32.14432314]
[1758287308013,0.66,241.47,241.46,0.28432314]
[1758287308211,0.66,241.47,241.46,32.14432314]
[1758287308411,0.1,241.48,241.47,4.42562433]
[1758287308979,0.76,241.48,241.47,4.42562433]
[1758287310099,0.76,241.48,241.47,36.28562433]
[1758287310693,0.1,241.48,241.47,49.88121834]
[1758287311886,0.76,241.48,241.47,4.42562433]
[1758287312199,0.76,241.48,241.47,36.28562433]
[1758287312406,0.76,241.48,241.47,4.42562433]
[1758287312590,0.76,241.48,241.47,36.28562433]
[1758287314395,0.1,241.48,241.47,36.26562433]
[1758287314987,0.76,241.48,241.47,36.26562433]
[1758287317482,0.76,241.48,241.47,4.42562433]
[1758287317688,0.76,241.48,241.47,36.24562433]
[1758287317891,0.76,241.48,241.47,4.42562433]
[1758287318117,0.76,241.48,241.47,0.28432314]
[1758287318415,0.76,241.48,241.47,31.82]
[1758287319082,0.76,241.48,241.47,32.10432314]
[1758287319286,0.76,241.48,241.47,36.24562433]
[1758287322015,0.76,241.48,241.47,4.42562433]
[1758287322209,0.76,241.48,241.47,36.24562433]
[1758287323410,0.76,241.48,241.47,4.42562433]
[1758287323620,0.76,241.48,241.47,36.24562433]
[1758287325396,0.76,241.48,241.45,30.14151125]
[1758287325596,0.66,241.47,241.45,30.14151125]
[1758287325810,0.66,241.47,241.46,31.82]
[1758287326010,0.1,241.48,241.46,31.82]
[1758287326518,0.66,241.47,241.45,30.14151125]
[1758287326720,0.1,241.48,241.46,31.82]
[1758287327412,0.66,241.47,241.46,31.82]
[1758287329724,0.66,241.47,241.46,35.9614727]
[1758287330023,0.1,241.48,241.46,35.9614727]
[1758287330801,0.76,241.48,241.46,35.9614727]
[1758287332619,0.1,241.48,241.46,35.9614727]
[1758287332819,0.1,241.48,241.46,36.6214727]
[1758287333006,0.1,241.48,241.47,0.28432314]
[1758287333900,0.1,241.48,241.47,4.42562433]
[1758287334497,0.1,241.48,241.47,62.26562433]
[1758287334702,0.76,241.48,241.47,58.12432314]
[1758287335201,0.76,241.48,241.47,62.26562433]
[1758287337119,0.1,241.48,241.47,62.26562433]
[1758287339817,0.1,241.48,241.47,63.92341491]
[1758287340621,0.1,241.48,241.47,64.60341491]
[1758287342021,0.1,241.48,241.47,6.08341491]
[1758287342333,0.1,241.48,241.47,37.92341491]
[1758287342504,0.1,241.48,241.47,52.19900892]
[1758287342709,0.1,241.48,241.47,37.90341491]
[1758287343211,0.1,241.48,241.47,32.08341491]
[1758287343618,0.1,241.48,241.47,63.90341491]
[1758287344717,0.77,241.48,241.47,63.90341491]
[1758287345304,0.1,241.48,241.47,63.90341491]
[1758287345508,0.1,241.48,241.47,37.90341491]
[1758287351244,0.77,241.48,241.47,32.08341491]
[1758287351421,0.1,241.48,241.47,63.88341491]
[1758287357329,0.1,241.48,241.47,63.86341491]
[1758287357729,0.1,241.48,241.47,32.08341491]
[1758287357934,0.1,241.48,241.47,63.86341491]
[1758287360444,0.1,241.48,241.47,38.54341491]
[1758287360832,0.1,241.48,241.47,37.86341491]
[1758287361341,0.1,241.48,241.47,6.08341491]
[1758287361657,0.77,241.48,241.47,6.08341491]
[1758287361945,0.77,241.48,241.47,1.94211372]
[1758287362254,0.77,241.48,241.47,37.84341491]
[1758287364348,6.34480174,241.48,241.47,1.65779058]
[1758287364655,6.34480174,241.48,241.46,31.76]
[1758287364831,0.67,241.47,241.46,31.76]
[1758287365522,0.67,241.47,241.46,31.78]
[1758287365727,0.67,241.47,241.43,4.14036003]
[1758287366027,0.67,241.46,241.44,31.78]
[1758287366251,0.67,241.45,241.44,31.78]
[1758287367635,0.67,241.45,241.44,31.76]
[1758287369529,0.67,241.45,241.43,8.28233892]
[1758287369728,5.67482213,241.48,241.44,31.76]
[1758287370352,0.67,241.47,241.44,31.76]
[1758287370559,0.67,241.46,241.44,31.76]
[1758287370854,0.67,241.45,241.43,4.14036003]
[1758287371026,1.43367204,241.47,241.43,4.14036003]
[1758287371027,1.43367204,241.47,241.44,31.76]
[1758287371642,0.67,241.46,241.44,31.76]
[1758287371850,0.67,241.45,241.44,31.76]
[1758287372765,0.67,241.45,241.43,4.14036003]
[1758287372971,1.43367204,241.44,241.43,4.14036003]
[1758287373132,1.43367204,241.45,241.43,31.76]
[1758287373337,1.43367204,241.46,241.43,31.76]
[1758287373540,0.67,241.44,241.43,31.76]
[1758287375432,6.2455464,241.44,241.43,31.76]
[1758287375631,6.2455464,241.44,241.4,2.16204952]
[1758287375832,2.10367204,241.43,241.41,31.76]
[1758287376062,0.67,241.42,241.41,31.76]
[1758287377533,2.10367204,241.42,241.4,2.16204952]
[1758287377740,2.10367204,241.41,241.4,2.16204952]
[1758287378044,0.67,241.41,241.4,33.92204952]
[1758287380871,0.1,241.48,241.4,33.92204952]
[1758287380872,0.77,241.48,241.4,38.77455118]
[1758287381170,0.1,241.48,241.41,0.99432314]
[1758287381346,0.77,241.48,241.42,31.76]
[1758287381543,0.77,241.48,241.43,31.76]